bitfinex/quotes_ETHUSD_20250813
["timestamp","ask_amount","ask_price","bid_price","bid_amount"]
[1755043578060,2.72537905,4596.9,4596.8,3.404]
[1755043578247,2.83417905,4596.9,4596.8,3.404]
[1755043578878,0.1088,4596.9,4596.8,3.404]
[1755043579083,0.1088,4596.9,4596.8,5.3417326]
[1755043579299,0.1088,4596.9,4596.8,7.51715898]
[1755043580157,2.17496969,4597.8,4597.0,2.17529728]
[1755043580370,2.17481133,4598.1,4597.1,7.11137697]
[1755043580371,0.1088,4597.2,4597.1,7.11137697]
[1755043580954,0.1088,4597.2,4597.1,8.08062801]
[1755043581155,0.1088,4597.2,4597.1,5.9053436]
[1755043581890,0.1088,4597.2,4597.1,8.08062801]
[1755043582482,0.002,4598.2,4597.6,2.17503593]
[1755043582684,0.002,4598.2,4597.9,2.17487033]
[1755043582876,0.002,4598.2,4598.0,5.57785301]
[1755043583075,0.002,4598.2,4598.1,3.403]
[1755043583450,0.1108,4598.2,4598.1,3.403]
[1755043585753,2.83556403,4598.2,4598.1,3.403]
[1755043586087,1.1176,4598.2,4598.1,3.403]
[1755043586468,0.6608,4598.2,4598.1,3.403]
[1755043591889,2.83558119,4598.2,4598.0,0.652108]
[1755043592196,4.38818119,4598.2,4598.1,3.401]
[1755043592393,2.72481133,4598.1,4598.0,0.652108]
[1755043592607,4.27741133,4598.1,4598.0,3.401]
[1755043593857,2.17495323,4597.8,4597.7,5.216]
[1755043594164,3.72755323,4597.8,4597.7,8.617]
[1755043594377,4.38367442,4597.8,4597.7,8.617]
[1755043594884,4.38367442,4597.8,4597.7,9.26923]
[1755043599313,4.93367442,4597.8,4597.7,8.616]
[1755043600568,0.1088,4598.0,4597.7,8.616]
[1755043600868,0.1088,4598.0,4597.7,5.216]
[1755043601116,0.002,4598.2,4597.8,3.399]
[1755043601315,2.17482598,4598.1,4597.8,3.399]
[1755043601470,2.17676695,4598.2,4597.8,3.399]
[1755043601672,0.002,4598.2,4597.8,3.399]
[1755043602413,0.55,4598.1,4597.8,3.399]
[1755043602910,0.552,4598.2,4597.9,0.4726]
[1755043603125,0.002,4598.2,4598.0,4.8761]
[1755043603277,0.002,4598.2,4598.1,3.65191133]
[1755043604017,0.002,4598.2,4598.1,4.63971082]
[1755043607297,0.002,4598.7,4598.6,2.17457487]
[1755043607600,0.002,4598.7,4598.6,5.57257487]
[1755043607907,0.002,4598.7,4598.6,7.04967487]
[1755043610609,0.002,4598.7,4598.6,3.65167487]
[1755043610776,0.002,4598.7,4598.6,7.69650287]
[1755043611303,0.002,4598.7,4598.6,7.80530287]
[1755043612775,0.002,4598.7,4598.6,4.40830287]
[1755043612981,0.002,4598.7,4598.6,6.32720287]
[1755043613178,0.002,4598.7,4598.6,7.69550287]
[1755043613616,0.002,4598.7,4598.6,6.21840287]
[1755043614614,0.002,4598.7,4598.6,7.64550287]
[1755043616510,0.002,4598.7,4598.6,12.44047887]
[1755043618219,0.473,4600.1,4598.6,29.75397]
[1755043618443,0.1088,4599.7,4598.7,17.36555268]
[1755043618728,0.1088,4599.7,4599.0,2.17438573]
[1755043619020,0.1088,4599.7,4599.1,3.395]
[1755043619184,2.17346019,4601.0,4599.9,2.17392421]
[1755043619384,0.1088,4600.3,4600.0,8.608]
[1755043619914,0.1088,4600.3,4600.2,2.17381852]
[1755043620085,0.1088,4600.3,4600.2,3.394]
[1755043620716,0.1088,4600.3,4600.2,6.01881852]
[1755043620923,0.1088,4600.3,4600.2,5.56781852]
[1755043621088,0.55,4601.0,4600.5,2.17364064]
[1755043621293,0.55,4601.0,4600.6,5.56758969]
[1755043621492,0.1088,4600.7,4600.6,5.56758969]
[1755043621702,0.1088,4600.7,4600.6,3.394]
[1755043623433,1.6129,4600.7,4600.6,3.394]
[1755043623724,1.77419,4600.7,4600.6,3.393]
[1755043624237,2.72362952,4600.6,4600.5,0.651687]
[1755043624589,4.22772952,4600.6,4600.5,4.044687]
[1755043624824,2.72386578,4600.1,4599.3,0.1088]
[1755043624996,0.55,4600.1,4600.0,8.606]
[1755043625194,4.22796578,4600.1,4600.0,5.213]
[1755043625419,4.33676578,4600.1,4600.0,8.606]
[1755043625615,4.98782205,4600.1,4600.0,5.213]
[1755043625817,4.98782205,4600.1,4600.0,8.606]
[1755043626225,4.98782205,4600.1,4600.0,5.213]
[1755043626529,4.98782205,4600.1,4600.0,8.606]
[1755043626732,0.55,4599.4,4598.9,5.212]
[1755043626912,2.72433845,4599.1,4599.0,3.393]
[1755043627107,4.22843845,4599.1,4599.0,3.393]
[1755043627316,4.33723845,4599.1,4599.0,3.393]
[1755043627818,2.72438573,4599.0,4598.9,0.651995]
[1755043628017,3.78958573,4599.0,4598.9,3.393]
[1755043628221,4.22848573,4599.0,4598.9,3.393]
[1755043628434,4.22848573,4599.0,4598.7,0.652047]
[1755043628435,2.72448029,4598.8,4598.7,0.652047]
[1755043628642,2.72448029,4598.8,4598.7,3.393]
[1755043628842,2.83328029,4598.8,4598.7,3.393]
[1755043629050,4.33738029,4598.8,4598.7,3.393]
[1755043629744,0.55,4598.7,4598.5,0.652077]
[1755043629932,0.55,4598.6,4598.5,0.652077]
[1755043630137,0.55,4598.6,4598.5,4.044077]
[1755043630647,3.78741978,4598.8,4598.5,4.044077]
[1755043630648,0.55,4598.7,4598.5,4.044077]
[1755043630856,0.1088,4598.8,4598.7,2.17452758]
[1755043631022,0.1088,4598.8,4598.7,5.56652758]
[1755043631224,2.17400842,4599.8,4598.9,2.17442613]
[1755043631431,0.1088,4599.1,4599.0,6.01738424]
[1755043631652,0.1088,4599.1,4599.0,7.07738424]
[1755043631852,0.1088,4599.1,4599.0,3.843]
[1755043632078,0.1088,4599.1,4599.0,3.392]
[1755043633055,1.0977,4599.1,4599.0,3.392]
[1755043633432,0.6588,4599.1,4599.0,3.392]
[1755043634355,0.55,4599.0,4598.5,0.652077]
[1755043634574,0.1088,4598.8,4598.5,0.652077]
[1755043634854,2.0541,4598.7,4598.6,3.392]
[1755043635032,0.9889,4598.7,4598.6,3.392]
[1755043635238,3.16342758,4598.7,4598.5,0.652077]
[1755043635555,3.16342758,4598.7,4598.6,3.392]
[1755043635869,0.9889,4598.7,4598.6,3.392]
[1755043636242,0.55,4598.7,4598.6,3.392]
[1755043637689,0.1088,4598.7,4598.6,5.8286061]
[1755043637844,0.4389,4600.1,4598.6,5.8286061]
[1755043638039,1.0652,4600.0,4598.7,3.391]
[1755043638244,0.55,4599.4,4598.7,3.391]
[1755043638442,2.72420714,4599.4,4598.7,3.391]
[1755043638848,2.72420714,4599.4,4598.6,2.17457318]
[1755043638849,0.55,4599.4,4598.5,0.652061]
[1755043639038,0.55,4599.1,4598.6,3.391]
[1755043639338,0.55,4599.2,4598.6,3.391]
[1755043639563,0.55,4599.2,4598.7,3.391]
[1755043639872,2.72429385,4599.2,4598.7,3.391]
[1755043640075,3.16323795,4599.2,4598.8,3.391]
[1755043640568,0.55,4599.2,4598.8,3.391]
[1755043640973,0.55,4599.3,4598.8,3.391]
[1755043641276,2.72425971,4599.3,4598.8,3.391]
[1755043641754,0.55,4599.3,4598.8,3.391]
[1755043641939,0.4389,4600.1,4598.9,2.162925]
[1755043642142,1.0652,4600.4,4599.0,4.902]
[1755043642343,0.4389,4600.8,4599.1,1.511]
[1755043642573,2.17361853,4600.7,4599.1,1.511]
[1755043642875,2.1756697,4600.6,4599.8,2.1739809]
[1755043643081,0.55,4600.5,4599.9,5.56495943]
[1755043643274,0.002,4600.6,4599.9,5.56495943]
[1755043643488,0.002,4600.6,4599.9,3.391]
[1755043643660,0.002,4600.6,4600.2,2.17378282]
[1755043643856,0.002,4600.6,4600.3,3.39]
[1755043644181,0.002,4600.6,4600.4,2.17371735]
[1755043644356,0.002,4600.6,4600.5,5.213]
[1755043644557,0.002,4600.6,4600.5,7.38667677]
[1755043645084,0.002,4600.6,4600.5,9.82403062]
[1755043646487,0.002,4600.6,4600.5,13.21403062]
[1755043647986,0.002,4600.6,4600.5,6.13935385]
[1755043648288,0.002,4600.6,4600.5,5.213]
[1755043648658,0.002,4600.6,4600.5,8.602]
[1755043649166,0.002,4600.6,4600.5,9.253713]
[1755043650603,0.002,4600.6,4600.5,5.864713]
[1755043650790,0.002,4600.6,4600.5,9.253713]
[1755043650986,0.002,4600.6,4600.5,11.42738977]
[1755043651180,0.002,4600.6,4600.5,12.87888977]
[1755043651382,0.002,4600.6,4600.5,9.48988977]
[1755043651569,0.002,4600.6,4600.5,12.87788977]
[1755043651771,0.002,4600.6,4600.5,11.88598977]
[1755043651999,0.002,4600.6,4600.5,9.252713]
[1755043652296,0.002,4600.6,4600.5,12.87788977]
[1755043652479,0.002,4600.6,4600.5,14.383055]
[1755043652868,0.002,4600.6,4600.5,13.391155]
[1755043653068,0.002,4600.6,4600.5,14.383055]
[1755043653498,0.002,4600.6,4600.5,9.252713]
[1755043655199,0.002,4600.6,4600.5,5.864713]
[1755043655397,0.002,4600.6,4600.5,9.252713]
[1755043656166,4.15022952,4600.6,4600.5,8.6]
[1755043656799,0.552,4600.6,4600.5,8.6]
[1755043657009,0.002,4600.6,4600.5,8.6]
[1755043657369,0.002,4600.6,4600.5,10.77367677]
[1755043657574,0.002,4600.6,4600.5,12.22517677]
[1755043657996,0.002,4600.6,4600.5,10.0515]
[1755043658201,0.002,4600.6,4600.5,8.6]
[1755043660406,0.002,4600.6,4600.5,5.213]
[1755043660918,0.002,4600.6,4600.5,8.6]
[1755043662018,0.002,4600.6,4600.5,8.599]
[1755043662196,0.002,4600.6,4600.5,9.250722]
[1755043662581,0.002,4600.6,4600.5,5.864722]
[1755043662783,0.002,4600.6,4600.5,9.250722]
[1755043664510,0.002,4600.6,4600.5,5.864722]
[1755043664891,0.002,4600.6,4600.5,9.250722]
[1755043665409,0.002,4600.6,4600.5,5.864722]
[1755043665712,3.47954833,4600.6,4600.5,9.250722]
[1755043666012,4.46654833,4600.6,4600.5,8.599]
[1755043667929,3.47954833,4600.6,4600.5,5.213]
[1755043668211,4.46654833,4600.6,4600.5,8.599]
[1755043670309,4.46654833,4600.6,4600.5,5.213]
[1755043670612,4.46654833,4600.6,4600.5,8.598]
[1755043672309,2.17562952,4600.6,4600.5,8.598]
[1755043672616,2.72562952,4600.6,4600.5,8.598]
[1755043673218,0.552,4600.6,4600.5,8.598]
[1755043673720,2.72562952,4600.6,4600.5,8.598]
[1755043673919,0.4376,4602.2,4600.5,9.0576]
[1755043674118,0.77925897,4603.3,4600.5,9.0576]
[1755043674119,2.17313786,4601.7,4600.7,2.17354166]
[1755043674319,2.17301549,4601.9,4600.9,2.17348049]
[1755043674523,2.17310852,4601.8,4601.0,6.01799964]
[1755043674708,2.17310852,4601.8,4601.1,3.385]
[1755043674894,2.17301694,4601.9,4601.1,5.55838691]
[1755043675101,2.43427863,4601.9,4601.1,5.55838691]
[1755043675608,0.55,4601.8,4601.1,5.55838691]
[1755043676119,0.55,4601.8,4601.2,2.17333812]
[1755043676320,2.17295879,4602.1,4601.3,5.55725637]
[1755043676522,2.17259128,4602.8,4601.8,2.17303231]
[1755043676819,2.75443502,4604.0,4600.8,0.10381135]
[1755043676820,0.4376,4603.6,4602.2,2.17286488]
[1755043677020,2.17249796,4603.0,4602.3,3.384]
[1755043677219,2.17258315,4602.9,4602.3,3.384]
[1755043677419,2.17250519,4603.0,4602.3,3.384]
[1755043677590,0.4376,4603.3,4602.3,5.55682116]
[1755043677591,0.43449475,4602.9,4602.3,5.55682116]
[1755043677788,0.55,4602.8,4602.3,3.384]
[1755043678289,0.55,4602.8,4602.3,4.8355]
[1755043678690,0.55,4602.7,4602.3,4.8355]
[1755043678890,2.72264273,4602.7,4602.3,4.8355]
[1755043679094,2.17259596,4602.8,4602.3,3.384]
[1755043679300,1.03950979,4602.7,4602.3,3.384]
[1755043680421,0.55,4602.5,4602.3,3.384]
[1755043680624,0.55,4602.5,4602.1,0.651502]
[1755043680822,0.55,4602.6,4602.2,3.383]
[1755043682700,0.55,4602.7,4602.2,3.383]
[1755043682946,1.1814,4604.1,4602.2,3.383]
[1755043683102,0.55,4603.6,4602.3,1.3892]
[1755043683304,2.17223089,4603.6,4602.8,2.17257957]
[1755043683539,0.21722309,4603.5,4602.9,3.382]
[1755043683828,0.55,4604.0,4602.9,3.382]
[1755043684046,2.72236387,4603.3,4602.9,3.382]
[1755043684224,2.72236387,4603.3,4602.9,0.651391]
[1755043684225,2.72249619,4603.0,4602.9,0.651391]
[1755043684432,2.72249619,4603.0,4602.9,3.382]
[1755043684673,4.20709619,4603.0,4602.9,3.382]
[1755043684802,4.84504599,4603.0,4602.9,3.382]
[1755043685003,2.72259059,4602.8,4602.7,5.211]
[1755043685204,2.72259059,4602.8,4601.5,5.211]
[1755043685205,2.72287384,4602.2,4601.5,5.211]
[1755043685424,2.72315716,4601.6,4601.5,5.211]
[1755043686335,4.31655716,4601.6,4601.5,8.593]
[1755043686951,4.31655716,4601.6,4599.9,0.1088]
[1755043686952,4.31655716,4601.6,4599.7,1.3892]
[1755043687133,2.44524833,4602.1,4599.7,1.3892]
[1755043687134,0.1088,4600.1,4599.9,5.21]
[1755043687341,0.1088,4600.1,4599.9,5.6436]
[1755043687637,0.6588,4600.1,4600.0,3.381]
[1755043688546,2.17363619,4600.6,4600.0,3.381]
[1755043688547,0.1088,4600.2,4600.0,4.7702]
[1755043688746,0.1088,4600.2,4600.1,1.3892]
[1755043689344,0.55,4600.0,4599.9,5.21]
[1755043689544,0.55,4600.1,4599.9,9.0256]
[1755043689844,0.1088,4600.2,4599.9,9.0256]
[1755043690051,0.1088,4600.2,4600.0,1.3892]
[1755043690244,0.1088,4600.2,4600.1,3.382]
[1755043690631,0.1088,4600.2,4600.1,4.7712]
[1755043690814,0.1088,4600.2,4600.1,6.94506578]
[1755043691214,0.1088,4600.2,4600.1,8.37796807]
[1755043691768,0.4724,4602.8,4600.2,12.65919247]
[1755043692061,0.1088,4601.8,4601.2,0.1088]
[1755043692212,0.1088,4601.8,4601.4,2.1732471]
[1755043692417,0.1088,4601.8,4601.5,4.7702]
[1755043692643,2.17230962,4603.4,4601.7,2.17310993]
[1755043692644,0.4724,4603.3,4601.7,2.17310993]
[1755043692832,0.1088,4602.1,4602.0,2.17295886]
[1755043693034,0.1088,4602.4,4602.0,8.592]
[1755043693359,0.1088,4602.4,4602.1,3.56210203]
[1755043693516,0.1088,4602.4,4602.2,3.381]
[1755043693718,0.1088,4602.4,4602.3,2.17282663]
[1755043694734,2.17225089,4603.6,4602.6,2.17265679]
[1755043695054,0.55,4603.4,4602.7,5.55362925]
[1755043695257,0.21722509,4603.5,4602.8,5.55358925]
[1755043695458,0.21722509,4603.5,4602.9,5.55349653]
[1755043695663,0.4724,4604.3,4602.9,3.8146]
[1755043695952,0.1088,4603.4,4603.1,2.1724414]
[1755043696164,0.1088,4603.4,4603.2,3.381]
[1755043696970,2.17239335,4603.3,4603.2,0.651379]
[1755043697260,3.65699335,4603.3,4603.2,3.381]
[1755043697416,4.08857269,4603.3,4603.2,3.381]
[1755043698553,2.60397269,4603.3,4603.2,3.381]
[1755043698918,3.07637269,4603.3,4603.2,3.381]
[1755043699325,4.08857269,4603.3,4603.2,3.381]
[1755043699551,2.17254339,4602.9,4602.8,0.651451]
[1755043699714,3.10359773,4602.9,4602.8,3.38]
[1755043700930,0.93105434,4602.9,4602.8,3.38]
[1755043701136,0.6588,4602.9,4602.8,3.38]
[1755043703064,2.17224982,4603.6,4602.8,6.94179059]
[1755043703363,0.1088,4603.1,4602.8,6.94178974]
[1755043703535,0.1088,4603.1,4602.9,0.4336]
[1755043703856,0.1088,4603.1,4602.8,4.3356]
[1755043703857,0.1088,4603.1,4602.8,3.38]
[1755043704729,0.1088,4603.1,4602.9,0.4336]
[1755043705062,0.1088,4603.1,4602.9,1.3892]
[1755043705263,0.1088,4603.1,4603.0,0.9556]
[1755043705444,0.1088,4603.1,4603.0,1.3892]
[1755043706054,0.1088,4603.1,4602.8,5.55258398]
[1755043706223,0.1088,4603.1,4602.9,1.3892]
[1755043706718,0.55,4603.9,4603.0,1.3892]
[1755043706918,0.1088,4603.4,4603.3,2.17235461]
[1755043707176,0.4744,4604.4,4603.3,2.17235461]
[1755043707177,2.17384611,4604.4,4603.6,2.17220793]
[1755043707348,0.43456123,4604.3,4603.7,3.378]
[1755043707756,0.1088,4603.8,4603.7,3.378]
[1755043711261,0.1088,4603.8,4602.3,2.17279307]
[1755043711561,0.1088,4603.1,4602.9,3.378]
[1755043711957,0.1088,4603.1,4602.9,3.8426]
[1755043712477,0.1088,4603.1,4602.9,3.378]
[1755043713551,0.1088,4603.1,4603.0,2.17249619]
[1755043713744,0.1088,4603.1,4603.0,3.55559619]
[1755043714051,1.4011,4604.8,4603.3,2.17231354]
[1755043714252,0.1088,4603.6,4603.4,3.377]
[1755043714451,0.1088,4603.6,4603.5,3.55536023]
[1755043715128,0.1088,4604.2,4603.8,2.17209225]
[1755043715332,0.1088,4604.2,4603.9,5.54906087]
[1755043715647,0.1088,4604.2,4603.9,3.377]
[1755043716052,0.5784,4604.2,4603.9,3.377]
[1755043716249,0.85361935,4604.2,4603.9,3.377]
[1755043716449,2.17201916,4604.1,4603.9,3.377]
[1755043716662,0.1088,4604.2,4603.9,3.377]
[1755043717330,2.17197944,4604.1,4603.9,3.377]
[1755043717664,0.1088,4604.2,4603.9,3.377]
[1755043717848,2.28073209,4604.2,4604.0,3.377]
[1755043718033,2.17193209,4604.2,4603.4,2.17229977]
[1755043718229,0.1088,4603.8,4603.4,7.38129977]
[1755043718461,0.1088,4603.8,4603.5,4.7601]
[1755043718660,0.1088,4603.8,4603.6,2.17220908]
[1755043718862,0.1088,4603.8,4603.6,1.3831]
[1755043719065,0.1088,4603.8,4603.7,0.4646]
[1755043719266,0.1088,4603.8,4603.6,0.9185]
[1755043719991,0.1088,4603.8,4603.5,5.54925981]
[1755043720192,0.1088,4603.8,4603.5,6.93235981]
[1755043720371,0.1088,4603.8,4603.6,2.63680843]
[1755043720691,0.1088,4603.8,4603.6,0.4646]
[1755043720895,0.1088,4603.8,4603.5,4.2955]
[1755043721185,0.1088,4603.8,4603.4,5.209]
[1755043721398,1.0196,4603.7,4603.5,3.376]
[1755043721558,0.55,4603.6,4603.5,3.376]
[1755043722214,0.6588,4603.6,4603.5,3.376]
[1755043724382,0.1088,4603.6,4603.5,3.376]
[1755043724996,0.6588,4603.6,4603.5,3.376]
[1755043725566,0.6588,4603.6,4603.4,5.209]
[1755043725567,2.72226023,4603.5,4603.4,5.209]
[1755043725769,4.67868313,4603.5,4603.4,8.585]
[1755043725983,4.67868313,4603.5,4603.4,5.209]
[1755043726309,4.67868313,4603.5,4603.4,8.584]
[1755043726795,4.67868313,4603.5,4603.4,5.209]
[1755043727101,4.78748313,4603.5,4603.4,8.584]
[1755043727684,4.78748313,4603.5,4603.4,3.375]
[1755043728275,3.85598313,4603.5,4603.4,3.375]
[1755043729082,3.38638313,4603.5,4603.4,3.375]
[1755043729802,1.2141229,4603.5,4603.4,3.375]
[1755043730471,0.6588,4603.5,4603.4,3.375]
[1755043731818,2.83106023,4603.5,4603.4,3.375]
[1755043732194,2.83106023,4603.5,4602.6,5.209]
[1755043732515,2.72259059,4602.8,4602.7,3.375]
[1755043732679,2.72263779,4602.7,4602.6,5.209]
[1755043732878,4.12373779,4602.7,4602.6,8.584]
[1755043733406,2.72263779,4602.7,4602.6,8.584]
[1755043733612,0.1088,4602.8,4602.6,8.584]
[1755043733981,0.55,4602.7,4602.6,8.584]
[1755043734912,2.72263779,4602.7,4602.6,8.584]
[1755043735110,2.72263779,4602.7,4602.6,5.209]
[1755043735300,2.72263779,4602.7,4602.6,8.584]
[1755043738281,2.72263779,4602.7,4602.6,8.583]
[1755043739216,0.55,4602.7,4602.6,8.583]
[1755043739798,2.72263779,4602.7,4602.6,8.583]
[1755043740904,2.72263779,4602.7,4602.6,5.209]
[1755043741104,4.59273605,4602.7,4602.6,8.583]
[1755043741719,3.22303605,4602.7,4602.6,8.583]
[1755043742015,4.59273605,4602.7,4602.6,5.209]
[1755043742223,4.59273605,4602.7,4602.6,8.583]
[1755043743092,4.59273605,4602.7,4602.6,5.209]
[1755043743287,4.59273605,4602.7,4602.6,8.583]
[1755043743490,4.59273605,4602.7,4602.6,5.209]
[1755043743696,4.59273605,4602.7,4602.6,8.583]
[1755043744765,4.59273605,4602.7,4600.9,0.1088]
[1755043744766,0.55,4601.5,4601.3,5.209]
[1755043744936,2.72325161,4601.4,4601.3,5.209]
[1755043745100,2.72325161,4601.4,4601.3,8.583]
[1755043745438,3.26045161,4601.4,4601.3,8.583]
[1755043745725,2.83205161,4601.4,4601.3,5.209]
[1755043745890,3.8551115,4601.4,4601.3,8.583]
[1755043746093,4.7964115,4601.4,4601.3,5.209]
[1755043746293,4.7964115,4601.4,4601.3,8.583]
[1755043747908,4.7964115,4601.4,4601.3,8.582]
[1755043749821,4.7964115,4601.4,4601.3,5.209]
[1755043750021,4.7964115,4601.4,4601.3,8.583]
[1755043750704,2.72381852,4600.2,4600.1,0.001]
[1755043751011,2.72381852,4600.2,4600.1,3.374]
[1755043752122,0.55,4600.2,4600.1,3.374]
[1755043752444,2.72381852,4600.2,4600.1,4.8256]
[1755043752606,2.72381852,4600.2,4600.1,3.374]
[1755043752806,2.72381852,4600.2,4600.1,3.375]
[1755043753039,2.72381852,4600.2,4600.1,3.8496]
[1755043753241,2.72381852,4600.2,4600.1,0.001]
[1755043753442,2.72381852,4600.2,4600.1,3.374]
[1755043754532,2.72381852,4600.2,4600.1,0.001]
[1755043754747,2.72381852,4600.2,4600.1,3.374]
[1755043755204,2.72381852,4600.2,4600.1,0.001]
[1755043755411,2.72381852,4600.2,4600.1,3.374]
[1755043758856,2.72381852,4600.2,4600.1,0.001]
[1755043759160,2.72381852,4600.2,4600.1,3.374]
[1755043765072,2.72381852,4600.2,4599.9,5.21]
[1755043765073,2.17391304,4600.0,4599.9,5.21]
[1755043765385,4.20241304,4600.0,4599.9,8.582]
[1755043765943,4.20241304,4600.0,4599.9,5.21]
[1755043766141,4.20241304,4600.0,4599.9,8.582]
[1755043766355,4.89009964,4600.0,4599.9,8.582]
[1755043766887,3.52039964,4600.0,4599.9,8.582]
[1755043770946,3.52039964,4600.0,4599.9,5.21]
[1755043771359,4.88909964,4600.0,4599.9,5.21]
[1755043771560,4.88909964,4600.0,4599.9,8.582]
[1755043772879,3.52039964,4600.0,4599.9,8.582]
[1755043773178,2.97039964,4600.0,4599.9,5.21]
[1755043773365,2.97039964,4600.0,4599.7,0.001]
[1755043773366,2.17400756,4599.8,4599.7,0.001]
[1755043773551,2.72400756,4599.8,4599.7,3.373]
[1755043773753,4.09270756,4599.8,4599.7,3.373]
[1755043778552,0.1088,4599.0,4598.9,4.7553]
[1755043779352,0.6588,4599.0,4598.9,4.7553]
[1755043780485,2.83318573,4599.0,4598.9,3.372]
[1755043781085,2.72443301,4598.9,4598.8,0.001]
[1755043781252,4.9481945,4598.9,4598.8,3.372]
[1755043782087,2.72457487,4598.6,4598.5,0.001]
[1755043782882,0.55,4598.6,4598.5,0.001]
[1755043783087,0.55,4598.6,4598.5,0.4758]
[1755043783254,0.55,4598.6,4598.5,3.8468]
[1755043783452,0.55,4598.6,4598.5,3.372]
[1755043783680,0.82244953,4598.6,4598.5,3.372]
[1755043783866,2.9970244,4598.6,4598.5,0.001]
[1755043784069,2.9970244,4598.6,4598.5,3.372]
[1755043785068,2.9970244,4598.6,4598.5,3.8468]
[1755043785069,0.82244953,4598.6,4598.5,3.8468]
[1755043785263,0.82244953,4598.6,4598.5,4.7553]
[1755043785264,0.55,4598.6,4598.5,4.7553]
[1755043785887,2.72457487,4598.6,4598.5,3.372]
[1755043786689,2.17423845,4599.4,4598.5,4.7553]
[1755043786861,2.17386578,4600.1,4598.6,2.17456455]
[1755043787062,0.55,4599.3,4598.7,1.3833]
[1755043787262,0.55,4599.3,4598.8,3.8448]
[1755043787462,2.17434522,4599.1,4598.9,1.3833]
[1755043787663,2.17434522,4599.1,4599.0,1.3833]
[1755043787962,2.72434522,4599.1,4599.0,1.3833]
[1755043788291,0.55,4599.1,4599.0,1.3833]
[1755043788457,2.17457487,4598.6,4598.5,0.001]
[1755043788657,2.72457487,4598.6,4598.5,3.371]
[1755043788876,2.72457487,4598.6,4597.5,0.4748]
[1755043788877,2.72476403,4598.2,4597.5,0.4748]
[1755043789681,2.72476403,4598.2,4597.5,1.127002]
[1755043790190,2.72476403,4598.2,4598.1,8.584]
[1755043791286,3.21471005,4598.2,4598.1,8.584]
[1755043792055,3.21471005,4598.2,4598.1,5.214]
[1755043792270,3.21471005,4598.2,4598.1,8.584]
[1755043792657,3.21471005,4598.2,4598.1,9.0588]
[1755043792891,2.72476403,4598.2,4598.1,8.584]
[1755043793092,2.83356403,4598.2,4598.1,5.214]
[1755043793387,2.83356403,4598.2,4598.1,8.584]
[1755043793608,2.83356403,4598.2,4598.1,9.0588]
[1755043793894,2.83356403,4598.2,4598.1,8.584]
[1755043794094,2.83356403,4598.2,4598.1,5.214]
[1755043794295,2.83356403,4598.2,4598.1,8.584]
[1755043794799,3.33438758,4598.2,4598.1,8.584]
[1755043796708,3.33438758,4598.2,4598.1,5.214]
[1755043796868,3.33438758,4598.2,4598.1,8.584]
[1755043798868,3.33438758,4598.2,4598.1,8.583]
[1755043800104,3.33438758,4598.2,4598.1,5.214]
[1755043800315,4.70458758,4598.2,4598.1,5.214]
[1755043800598,4.70458758,4598.2,4598.1,8.583]
[1755043800799,4.70458758,4598.2,4598.1,5.214]
[1755043801002,4.70458758,4598.2,4598.1,8.583]
[1755043801696,3.33438758,4598.2,4598.1,8.583]
[1755043801906,2.72495323,4597.8,4597.7,0.001]
[1755043802073,2.83375323,4597.8,4597.7,3.37]
[1755043803372,0.6588,4597.8,4597.7,3.37]
[1755043803685,0.6588,4597.8,4597.7,4.6983]
[1755043804099,2.83375323,4597.8,4597.7,4.6983]
[1755043804604,2.83375323,4597.8,4597.7,3.37]
[1755043805102,0.6588,4597.8,4597.7,3.37]
[1755043805417,0.6588,4597.8,4597.7,4.6983]
[1755043807811,0.6588,4597.8,4597.7,5.350475]
[1755043810621,0.6588,4597.8,4597.7,0.653175]
[1755043810804,3.11712104,4597.8,4597.7,3.369]
[1755043811111,0.6588,4597.8,4597.7,3.369]
[1755043811878,0.6588,4597.8,4597.7,3.8254]
[1755043812910,2.83375323,4597.8,4597.7,0.001]
[1755043813212,2.83375323,4597.8,4597.7,3.369]
[1755043813213,0.6588,4597.8,4597.7,3.369]
[1755043814611,0.55,4597.8,4597.7,4.6973]
[1755043814913,0.6588,4597.8,4597.7,4.6973]
[1755043815217,0.6588,4597.8,4597.7,5.349475]
[1755043815711,0.6588,4597.8,4597.7,4.021175]
[1755043819311,0.6588,4597.8,4597.7,5.349475]
[1755043821213,0.002,4598.2,4598.0,2.17481781]
[1755043821385,0.002,4598.2,4598.1,3.367]
[1755043821581,0.002,4598.2,4598.1,5.54181133]
[1755043821785,0.002,4598.2,4598.1,6.87011133]
[1755043824206,0.002,4598.2,4598.1,26.79241533]
[1755043824404,0.002,4598.2,4598.1,23.97448677]
[1755043824609,0.002,4598.2,4598.1,29.56617177]
[1755043825019,0.002,4598.2,4598.1,28.90474477]
[1755043825196,0.002,4598.2,4598.1,14.16628077]
[1755043825399,0.002,4598.2,4598.1,11.02900577]
[1755043825599,0.002,4598.2,4598.1,13.97181077]
[1755043825795,0.002,4598.2,4598.0,0.652033]
[1755043826025,0.002,4598.2,4598.1,3.366]
[1755043826610,0.002,4598.2,4598.1,3.8224]
[1755043826802,0.002,4598.2,4598.1,5.54081133]
[1755043827315,0.002,4598.2,4597.9,0.652097]
[1755043827316,0.002,4598.2,4597.9,2.82700093]